Cogmind - Beta 16 @@@ ROGUE MODE // 2025.12.05 @ 02:58:37 Player: lepire Result: Self-destructed Performance ------------- Evolutions (4) 2000 Regions Visited (13) 2600 Robots Destroyed (156) 780 Value Destroyed (6736) 6736 Prototype IDs (30) 600 Alien Tech Used (0) 0 Bonus (2239) 2239 TOTAL SCORE: 14955 Bonus ------- High Alert Combat Kills 369 Follower Combat Kills 170 Entered Garrisons 400 Used RIF Installer 1000 Aligned with FarCom 300 Cogmind --------- Core Integrity 667/850 Matter 17/300 Energy 150/150 System Corruption 11% Temperature Cool (0) Movement Walking (178) Ox1 Location -6/Factory Parts ------- > --- POWER (1) -------- Micro Nuclear Core > --- PROPULSION (4) --- Carbon-fiber Leg Carbon-fiber Leg Carbon-fiber Leg Improved Carbon-fiber Leg > --- UTILITY (6) ------ High-capacity Storage Unit Advanced Signal Interpreter Target Analyzer Improved Reaction Control System System Shield Relay Coupler [Grunt] (18) > --- WEAPON (4) ------- Heavy Flak Cannon Heavy Flak Cannon > --- INVENTORY (20) --- Advanced Heat Sink Advanced Terrain Scan Processor Matter Filter Weapon Cycler Relay Coupler [NC] (33) Relay Coupler [NC] (29) Relay Coupler [Specialist] (26) Relay Coupler [Hunter] (13) Gauss Cannon Heavy Rocket Launcher Faulty Rocket Array Remote Datajack Field Lobotomy Kit (5) Peak State ------------ > --- POWER ------------ Micro Nuclear Core > --- PROPULSION ------- Armored Treads Medium Treads Compact Wheel > --- UTILITY ---------- Improved Heat Sink High-capacity Storage Unit Improved Signal Interpreter Hardened Heavy Armor Plating > --- WEAPON ----------- XL Autogun Array > --- INVENTORY -------- Light Nuclear Core Medium Treads Wheel Compact Wheel High-capacity Battery Improved Sensor Array Improved Terrain Scan Processor Hardened Heavy Armor Plating Improved Light Armor Plating Improved Medium Armor Plating Relay Coupler [Hunter] Recalibrator Field Recycling Unit Heavy Assault Rifle Rocket Launcher Missile Launcher Field Lobotomy Kit Maul [Rating: 69] Favorites ----------- Power Light Nuclear Core Engine Light Angular Momentum Engine Power Core Light Nuclear Core Propulsion Compact Wheel Treads Armored Treads Leg Carbon-fiber Leg Wheel Compact Wheel Utility High-capacity Storage Unit Device Advanced Heat Sink Storage High-capacity Storage Unit Processor Improved Signal Interpreter Hackware System Shield Protection Hardened Heavy Armor Plating Weapon XL Autogun Subcomponent Energy Gun Gatling Laser Ballistic Gun XL Autogun Subcomponent Ballistic Cannon Gauss Cannon Launcher Heavy Rocket Launcher Special Weapon Remote Datajack Impact Weapon Maul Build | -11 -10 -10 -10 -9 -8 -7 -7 -7 -7 -7 -6 -6 -6 ------- Run | Yrd Mat Min Exi Min Mat Fac Gar Fac Low Low Fac Gar Fac Slots Evolved 8 | . . . . . 4 2 . . . . 2 . . Power . | . . . . . . . . . . . . . . Propulsion 2 | . . . . . 1 . . . . . 1 . . Utility 4 | . . . . . 1 2 . . . . 1 . . Weapon 2 | . . . . . 2 . . . . . . . . Parts Attached 84 | 2 4 1 . . 7 13 5 8 6 2 25 7 4 Power 7 | . . 1 . . 1 1 . . 1 . 3 . . Engine 2 | . . . . . . . . . . . 2 . . Core 5 | . . 1 . . 1 1 . . 1 . 1 . . Reactor . | . . . . . . . . . . . . . . Propulsion 20 | 2 . . . . 2 5 . 1 . . 5 4 1 Treads 10 | 1 . . . . 1 3 . 1 . . 4 . . Leg 5 | . . . . . . . . . . . . 4 1 Wheel 5 | 1 . . . . 1 2 . . . . 1 . . Hover . | . . . . . . . . . . . . . . Flight . | . . . . . . . . . . . . . . Utility 31 | . 4 . . . . 7 2 3 3 . 9 2 1 Device 13 | . 1 . . . . 2 2 2 3 . 2 . 1 Storage 2 | . 2 . . . . . . . . . . . . Processor 5 | . . . . . . 2 . . . . 3 . . Hackware 3 | . . . . . . . . . . . 1 2 . Protection 8 | . 1 . . . . 3 . 1 . . 3 . . Artifact . | . . . . . . . . . . . . . . Weapon 26 | . . . . . 4 . 3 4 2 2 8 1 2 Energy Gun 2 | . . . . . . . 1 . . . . 1 . Energy Cannon . | . . . . . . . . . . . . . . Ballistic Gun 9 | . . . . . 1 . 2 3 1 . 2 . . Ballistic Cannon 6 | . . . . . . . . . . . 4 . 2 Launcher 6 | . . . . . 1 . . 1 1 2 1 . . Special Weapon 2 | . . . . . 1 . . . . . 1 . . Impact Weapon 1 | . . . . . 1 . . . . . . . . Slashing Weapon . | . . . . . . . . . . . . . . Piercing Weapon . | . . . . . . . . . . . . . . Special Melee Weapon . | . . . . . . . . . . . . . . Unidentified Prototypes 5 | . . . . . . . 1 . 2 . 2 . . Corrupted Parts 1 | . . . . . . . . . . . . 1 . System Corruption 7 | . . . . . . . . . . . . 7 . Parts Lost 29 | . . . . . . 2 . . 2 3 8 14 . Power 3 | . . . . . . . . . 1 . 1 1 . Propulsion 10 | . . . . . . 1 . . . 2 1 6 . Utility 8 | . . . . . . 1 . . 1 1 2 3 . Weapon 8 | . . . . . . . . . . . 4 4 . Highest Loss Streak 5 | . . . . . . 2 . . 2 3 2 5 . To Critical Strikes . | . . . . . . . . . . . . . . Average Backups 15 | 7 5 8 10 12 16 17 18 18 17 15 17 13 11 Power 1 | 1 1 1 2 3 2 1 1 1 . . . . . Propulsion 1 | 5 2 2 2 2 1 2 2 . 1 . . . . Utility 7 | . . 2 2 2 4 7 9 9 8 8 9 8 6 Weapon 4 | 1 1 3 3 4 7 5 5 5 5 5 4 2 3 Tool/Special . | . . . . . . . . . . . . . . Unused Backups 28 | . 2 . . 2 5 2 1 4 . . . 4 8 Power 3 | . . . . . 2 1 . . . . . . . Propulsion 1 | . . . . . . . . 1 . . . . . Utility 16 | . 2 . . . 1 . 1 2 . . . 3 7 Weapon 5 | . . . . 2 2 1 . . . . . . . Tool/Special 3 | . . . . . . . . 1 . . . 1 1 Average Slot Usage (%) 82 | . 94 100 100 100 59 67 70 89 91 78 82 75 84 Engine 1 | . 14 4 . . . . . . . . 2 2 . Core 6 | . . 9 14 14 9 7 7 7 6 7 3 2 6 Treads 12 | . 14 14 14 14 9 8 15 15 15 15 15 8 . Leg 1 | . . . . . . . . . . . . 7 25 Wheel 7 | . 14 14 14 14 8 13 7 7 7 . 5 1 . Device 4 | . 4 . . . 8 3 6 1 7 15 4 4 6 Storage 8 | . 14 14 14 14 9 7 7 7 7 7 6 5 6 Processor 5 | . . . . . . 12 7 7 3 . 7 13 13 Protection 9 | . 3 14 14 14 5 7 7 13 10 . 12 4 . Ballistic Gun 16 | . 28 28 28 28 8 4 7 26 29 22 16 . . Ballistic Cannon 2 | . . . . . . . . . . . 4 11 10 Peak Build Rating 69 | 6 7 9 15 15 48 66 69 60 60 58 59 56 53 Average Rating 43 | 5 6 8 12 15 44 49 54 56 58 46 51 43 49 On Entrance 31 | 6 6 7 9 15 15 17 65 42 60 58 46 53 43 Avg Prop Armor Cover (%) 9 | . 11 9 9 9 7 8 10 8 8 9 11 11 . Naked Turns . | . . . . . . . . . . . . . . Heaviest Build 87 | 12 50 52 52 52 64 81 82 85 87 82 83 83 64 Greatest Support 63 | 16 16 16 16 16 32 32 16 20 16 40 40 48 63 Greatest Overweight (x) 5 | . 3 3 3 3 3 5 5 5 5 5 5 5 1 Average Overweight (x) 3 | . . 3 3 3 2 1 4 4 4 1 3 1 . Largest Inventory Capacity 20 | 8 20 20 20 20 20 20 20 20 20 20 20 20 20 Average Capacity 19 | 8 10 20 20 20 20 20 20 20 20 20 20 18 20 Most Carried 20 | 7 8 9 15 17 20 20 20 20 20 17 20 20 14 Average Carried 16 | 5 5 8 12 15 17 18 19 19 18 16 17 13 11 Final Capacity 20 | 8 20 20 20 20 20 20 20 20 20 20 20 20 20 Final Carried 20 | 4 8 9 15 17 20 19 20 20 17 16 20 9 13 Class Distribution -------------------- 29% | Mutant 25% | Tank 12% | Gunner 9% | Scavenger-Tank 7% | Skirmisher 6% | Bothacker-Mutant 4% | Bothacker-Tank 3% | Bothacker-Gunner Dominant Class ---------------- Mutant | -10/Materials Mutant | -10/Mines Mutant | -10/Exiles Mutant | -9/Mines Skirmisher | -8/Materials Tank | -7/Factory Tank | -7/Garrison Tank | -7/Factory Gunner | -7/Lower Caves Gunner | -7/Lower Caves Scavenger-Tank | -6/Factory Bothacker-Mutant | -6/Garrison Bothacker-Mutant | -6/Factory Resources | -11 -10 -10 -10 -9 -8 -7 -7 -7 -7 -7 -6 -6 -6 ----------- Run | Yrd Mat Min Exi Min Mat Fac Gar Fac Low Low Fac Gar Fac Matter Collected 5398 | 220 86 138 . . 225 600 767 526 466 383 1360 627 . Remotely . | . . . . . . . . . . . . . . Salvage Created 6176 | . 136 203 . . 420 651 843 817 448 539 1588 461 70 Parts 291 | . 9 12 . . 20 45 39 41 27 29 54 15 . Haulers Intercepted 6 | . 1 . . . . . . 2 . . 2 . 1 Recyclers Shooed 9 | . . 2 . . . . . . . . 7 . . Parts Field Recycled 7 | . . . . . . 7 . . . . . . . Retrieved Matter 26 | . . . . . . 26 . . . . . . . Parts Self-Destructed 51 | . . . . . . . . . 22 29 . . . Prevented . | . . . . . . . . . . . . . . Parts Restored 1 | . . . . . . . . . 1 . . . . Broken 1 | . . . . . . . . . 1 . . . . Kills | -11 -10 -10 -10 -9 -8 -7 -7 -7 -7 -7 -6 -6 -6 ------- Run | Yrd Mat Min Exi Min Mat Fac Gar Fac Low Low Fac Gar Fac Combat Hostiles Destroyed 130 | . 4 5 . . 8 12 22 12 18 14 20 15 . Guns 102 | . 4 5 . . 8 12 22 12 9 13 17 . . Cannons 11 | . . . . . . . . . . . 3 8 . AOE 16 | . . . . . . . . . 9 1 . 6 . Classes Destroyed 14 | . 3 1 . . 4 3 . 1 . . 1 1 . Worker 7 | . . . . . . 2 . 1 . . 4 . . Builder 2 | . . . . . 1 1 . . . . . . . Hauler 6 | . 1 . . . . . . 2 . . 2 . 1 Recycler 8 | . . 1 . . . 2 . 2 . . 3 . . Mechanic 1 | . . . . . 1 . . . . . . . . Operator 1 | . . . . . . . . 1 . . . . . Watcher 1 | . . . . . . . . . . . 1 . . Swarmer 41 | . 3 3 . . . 4 9 . 9 6 3 4 . Grunt 63 | . 1 2 . . 6 5 11 8 6 6 10 8 . Brawler 1 | . . . . . 1 . . . . . . . . Duelist 1 | . . . . . . . . . . . . 1 . Sentry 10 | . . . . . . 1 1 . 2 2 3 1 . Hunter 4 | . . . . . 1 . 1 1 1 . . . . Programmer 10 | . . . . . . 2 . 3 . . 4 1 . Best Kill Streak 11 | . 3 4 . . 4 7 5 3 9 11 6 5 1 Combat Bots Only 11 | . 3 3 . . 3 5 5 3 9 11 4 5 . Max Kills in Single Turn 5 | . 1 2 . . 2 2 2 1 5 2 2 2 1 Gunslinging 1 | . . 1 . . . . . . . 1 . . . Exploded 5 | . . . . . . . . . 5 1 . 2 . Melee . | . . . . . . . . . . . . . . Uniques/NPCs Destroyed . | . . . . . . . . . . . . . . Combat | -11 -10 -10 -10 -9 -8 -7 -7 -7 -7 -7 -6 -6 -6 -------- Run | Yrd Mat Min Exi Min Mat Fac Gar Fac Low Low Fac Gar Fac Hostile Shots Fired 614 | . 15 20 . . 9 33 52 51 115 50 161 108 . Missed 162 | . 3 5 . . 3 10 11 12 38 11 38 31 . Hits 452 | . 12 15 . . 6 23 41 39 77 39 123 77 . Melee 1 | . . . . . . . . . . . . 1 . Projectile 451 | . 12 15 . . 6 23 41 39 77 39 123 76 . Critical Strikes 21 | . . . . . 1 1 1 2 3 1 7 5 . Damage Taken 7270 | . 109 204 . . 95 335 647 610 1286 624 1902 1458 . Core 470 | . 24 28 . . . . 16 64 95 60 70 113 . Absorbed by Shields . | . . . . . . . . . . . . . . Regen/Repaired (Parts) 740 | . . . . . 61 . . 679 . . . . . Core Remaining (%) 86 | 100 . . . 79 100 . . . . 66 . . . Volleys Fired 415 | . 14 15 . . 14 25 58 57 37 29 111 50 5 Largest 4 | . 2 2 . . 1 1 2 4 4 4 4 2 2 Hottest 120 | . 40 40 . . 100 60 103 80 85 85 120 80 88 Shots Fired 869 | . 28 30 . . 14 26 61 133 92 99 299 77 10 Gun 726 | . 28 30 . . 11 26 61 133 88 97 247 5 . Cannon 116 | . . . . . . . . . . . 40 66 10 Launcher 13 | . . . . . 2 . . . 4 2 . 5 . Special 14 | . . . . . 1 . . . . . 12 1 . Kinetic 835 | . 28 30 . . 11 26 59 133 88 97 287 66 10 Thermal 3 | . . . . . 1 . 2 . . . . . . Explosive 12 | . . . . . 2 . . . 3 2 . 5 . Electromagnetic 6 | . . . . . . . . . 1 . . 5 . Robot Hit Streak 17 | . 9 5 . . 16 8 11 16 13 17 15 13 6 Robot Miss Streak 10 | . 5 2 . . 2 3 7 6 5 6 5 4 10 Penetration Max . | . . . . . . . . . . . . . . Secondary Targets 8 | . . 1 . . . . . . . 5 2 . . Max Gunslinging Chain 1 | . . 1 . . . . . . . 1 1 . . Shots Hit Robots 569 | . 14 19 . . 11 26 54 76 53 51 211 45 9 Core Hits 312 | . 6 11 . . 16 23 36 30 33 26 94 31 6 Critical Kills . | . . . . . . . . . . . . . . Critical Parts Destroyed 2 | . . 1 . . . . . . . . 1 . . Critical Strikes 10 | . . 1 . . . . . . . . 3 6 . Destroy 2 | . . 1 . . . . . . . . 1 . . Blast 6 | . . . . . . . . . . . 2 4 . Corrupt 2 | . . . . . . . . . . . . 2 . Melee Attacks 1 | . . . . . . 1 . . . . . . . Impact 1 | . . . . . . 1 . . . . . . . Slashing . | . . . . . . . . . . . . . . Piercing . | . . . . . . . . . . . . . . Sneak Attacks . | . . . . . . . . . . . . . . Combat Hostiles . | . . . . . . . . . . . . . . Follow-up Attacks . | . . . . . . . . . . . . . . Damage Inflicted 16057 | . 183 239 . . 565 1336 2394 1644 2320 1266 4268 1669 173 Guns 12143 | . 183 239 . . 565 1336 2394 1644 941 1148 3619 74 . Cannons 1915 | . . . . . . . . . . . 638 1104 173 Explosions 1988 | . . . . . . . . . 1379 118 . 491 . Melee . | . . . . . . . . . . . . . . Ramming 11 | . . . . . . . . . . . 11 . . Kinetic 13937 | . 183 239 . . 565 1336 2347 1644 941 1148 4257 1104 173 Thermal 588 | . . . . . . . 47 . 541 . . . . Explosive 1328 | . . . . . . . . . 719 118 . 491 . Electromagnetic 193 | . . . . . . . . . 119 . . 74 . Impact . | . . . . . . . . . . . . . . Slashing . | . . . . . . . . . . . . . . Piercing . | . . . . . . . . . . . . . . Highest Corruption 11 | . . . . . . 2 2 4 4 2 4 11 11 Average Corruption 3 | . . . . . . 2 2 2 2 2 3 5 11 Corruption Purged 2 | . . . . . . . . . 2 . . . . Corruption Blocked . | . . . . . . . . . . . . . . Effects 107 | . . . . . . 9 10 15 16 10 13 27 7 Message Errors 26 | . . . . . . 2 1 4 4 1 4 8 2 Matter Fused 22 | . . . . . . . 1 5 3 4 3 5 1 Heat Flow Errors 13 | . . . . . . 2 1 2 2 1 1 3 1 Energy Discharges 15 | . . . . . . 1 2 2 2 . 1 5 2 Parts Rejected 1 | . . . . . . . . . . . . 1 . Parts Fused 1 | . . . . . . . . . . . . 1 . Data Loss (minor) 13 | . . . . . . 1 2 2 3 . 4 1 . Data Loss (major) 8 | . . . . . . 1 2 . 1 2 . 1 1 Misfires 4 | . . . . . . 1 1 . . 2 . . . Alerts 1 | . . . . . . 1 . . . . . . . Weapon Failures 3 | . . . . . . . . . 1 . . 2 . Overload Shots . | . . . . . . . . . . . . . . Overflow Damage 93 | . . . . . . . . . 58 . . 35 . Projectiles 4 | . . . . . . . . . . . . 4 . Explosions 89 | . . . . . . . . . 58 . . 31 . Melee . | . . . . . . . . . . . . . . Knockbacks 14 | . . . . . . . . . . . 6 7 1 Impact . | . . . . . . . . . . . . . . Kinetic 13 | . . . . . . . . . . . 5 7 1 Secondary 1 | . . . . . . . . . . . 1 . . Self-Inflicted Damage 83 | . . . . . . . . . 8 . 5 70 . Shots 4 | . . . . . . . . . 1 . . 3 . Rammed 1 | . . . . . . . . . . . 1 . . Targets Rammed 1 | . . . . . . . . . . . 1 . . Kicked . | . . . . . . . . . . . . . . Crushed . | . . . . . . . . . . . . . . Highest Temperature 444 | . . 8 . . 126 270 423 289 320 444 380 238 237 Average Temperature 104 | . . 4 . . 44 90 118 81 113 226 120 76 112 Received Heat Transfer 2491 | . 24 105 . . 54 54 279 171 297 117 771 619 . Effects 7 | . . . . . . . 1 3 1 1 . . 1 Shutdowns 2 | . . . . . . . 1 . . 1 . . . Energy Bleed 1 | . . . . . . . . . . . . . 1 Interference 3 | . . . . . . . . 3 . . . . . Short Circuit 1 | . . . . . . . . . 1 . . . . Siege Activations . | . . . . . . . . . . . . . . Martial Activations . | . . . . . . . . . . . . . . Shielding Activations . | . . . . . . . . . . . . . . Robots Disrupted . | . . . . . . . . . . . . . . Combat Hostiles . | . . . . . . . . . . . . . . Robots Corrupted 1 | . . . . . . . . . . . . 1 . Combat Hostiles 1 | . . . . . . . . . . . . 1 . Parts Fried 2 | . . . . . . . . . . . . 2 . Impact Corruptions . | . . . . . . . . . . . . . . Robots Melted . | . . . . . . . . . . . . . . Combat Hostiles . | . . . . . . . . . . . . . . Parts Melted 1 | . . . . . . . . 1 . . . . . Heat Transferred 760 | . . . . . . . 100 . 660 . . . . Parts Sabotaged . | . . . . . . . . . . . . . . Parts Stolen . | . . . . . . . . . . . . . . Parts Stripped . | . . . . . . . . . . . . . . Power Chain Reactions 1 | . . . . . . . . . 1 . . . . Alert | -11 -10 -10 -10 -9 -8 -7 -7 -7 -7 -7 -6 -6 -6 ------- Run | Yrd Mat Min Exi Min Mat Fac Gar Fac Low Low Fac Gar Fac Maximum Alert Level 3 | . . . . . . . 3 2 . . 1 2 1 Low Security (%) 53 | 100 100 100 . 100 100 100 7 . . . 67 5 . Level 1 19 | . . . . . . . 16 41 . . 32 22 100 Level 2 20 | . . . . . . . 22 58 . . . 72 . Level 3 6 | . . . . . . . 54 . . . . . . Level 4 . | . . . . . . . . . . . . . . Level 5 . | . . . . . . . . . . . . . . High Security . | . . . . . . . . . . . . . . Max Security . | . . . . . . . . . . . . . . Peak Influence 934 | . 96 90 . 81 178 168 934 490 . . 247 648 340 Initial 490 | . . 22 . . 26 64 107 490 . . 179 161 340 Average 243 | . 56 35 . 2 59 46 646 410 . . 144 467 285 Influence Increases 4269 | . 167 140 . 81 280 343 887 379 470 280 603 627 12 Destroy 0b10 Robot/C 2740 | . 80 100 . 60 160 240 480 240 360 280 400 340 . Destroy 0b10 Robot/NC 130 | . 5 5 . . 10 25 . 30 . . 50 . 5 Destroy Leader 394 | . 22 20 . 10 30 50 30 74 20 . 106 30 2 Allied During Kill 58 | . . . . 11 . . 45 . . . . 2 . Successful Hack 94 | . 14 . . . 25 4 16 16 . . . 14 5 Disable Machine 60 | . . 15 . . 15 15 . . . . 15 . . Anti-Garrison Action 300 | . . . . . . . 200 . . . . 100 . Destroy Structure 133 | . 1 . . . 25 9 11 4 . . 17 66 . Partial Spotted 15 | . . . . . . . . 15 . . . . . Lose Combat Pursuer 345 | . 45 . . . 15 . 105 . 90 . 15 75 . Influence Decreases 4037 | . 109 188 10 12 206 332 107 902 583 293 657 210 428 Entered New Map 1353 | . . 36 10 . 43 79 47 444 153 57 106 70 308 Time Decay 2344 | . 109 152 . 12 163 233 . 458 410 206 481 . 120 Lost Part 280 | . . . . . . 20 . . 20 30 70 140 . Lost Ally 60 | . . . . . . . 60 . . . . . . Squads Dispatched 22 | . 1 . . . 1 2 . 6 . 1 9 . 2 Investigation 3 | . . . . . 1 . . 1 . 1 . . . Extermination 7 | . . . . . . 1 . 2 . . 3 . 1 Reinforcement 8 | . 1 . . . . . . 3 . . 3 . 1 Assault . | . . . . . . . . . . . . . . Garrison 4 | . . . . . . 1 . . . . 3 . . Intercept . | . . . . . . . . . . . . . . Searches Triggered . | . . . . . . . . . . . . . . Construction Impeded 1 | . . . . . . . . . . . 1 . . Haulers Reinforced 4 | . . . . . . . . 1 . . 2 . 1 Active Scanning Responses . | . . . . . . . . . . . . . . Cargo Convoy Interrupts . | . . . . . . . . . . . . . . Stealth | -11 -10 -10 -10 -9 -8 -7 -7 -7 -7 -7 -6 -6 -6 --------- Run | Yrd Mat Min Exi Min Mat Fac Gar Fac Low Low Fac Gar Fac Distress Signals 2 | . . . . . . . . 1 . . 1 . . Communications Jammed . | . . . . . . . . . . . . . . Distress Signals . | . . . . . . . . . . . . . . Times Spotted 175 | . 10 5 . . 10 12 28 14 28 14 29 23 2 Peak Tracking Total 11 | . 3 3 . . 3 4 7 3 11 11 5 4 3 Tactical Retreats 17 | . 2 . . . 1 . 5 . 4 . 1 4 . Traps | -11 -10 -10 -10 -9 -8 -7 -7 -7 -7 -7 -6 -6 -6 ------- Run | Yrd Mat Min Exi Min Mat Fac Gar Fac Low Low Fac Gar Fac Traps Triggered 9 | . . . . . . 1 2 . . . 2 4 . Indirectly . | . . . . . . . . . . . . . . Trap Hack Attempts . | . . . . . . . . . . . . . . Triggered . | . . . . . . . . . . . . . . Disarmed . | . . . . . . . . . . . . . . Reprogrammed . | . . . . . . . . . . . . . . Reused . | . . . . . . . . . . . . . . Traps Extracted . | . . . . . . . . . . . . . . Installed . | . . . . . . . . . . . . . . Triggered . | . . . . . . . . . . . . . . Machines | -11 -10 -10 -10 -9 -8 -7 -7 -7 -7 -7 -6 -6 -6 ---------- Run | Yrd Mat Min Exi Min Mat Fac Gar Fac Low Low Fac Gar Fac Machines Disabled 17 | . . 1 . . 1 1 3 . 6 2 1 2 . Max in Single Turn 4 | . . 1 . . 1 1 1 . 4 1 1 1 . Garrison Access 1 | . . . . . . . . . . . 1 . . Garrison Relay 5 | . . . . . . . 3 . . . . 2 . Machines Repaired . | . . . . . . . . . . . . . . Machines Dismantled . | . . . . . . . . . . . . . . Machines Sabotaged . | . . . . . . . . . . . . . . Overloaded Fab Kills . | . . . . . . . . . . . . . . Hacking | -11 -10 -10 -10 -9 -8 -7 -7 -7 -7 -7 -6 -6 -6 --------- Run | Yrd Mat Min Exi Min Mat Fac Gar Fac Low Low Fac Gar Fac Machines Accessed 25 | . 3 . 1 . 3 4 3 3 1 1 2 2 2 Terminals 13 | . 3 . . . 2 . 3 1 1 1 . 2 . Fabricators 1 | . . . . . . 1 . . . . . . . Repair Stations 2 | . . . . . 1 . . 1 . . . . . Recycling Units 3 | . . . . . . 1 . 1 . . . . 1 Scanalyzers 1 | . . . . . . . . . . . . . 1 Garrison Access 4 | . . . . . . 2 . . . . 2 . . Total Hacks 67 | . 10 . 1 . 14 6 8 10 5 3 2 3 5 Successful 44 | . 7 . 1 . 8 3 2 7 5 3 2 1 5 Failed 23 | . 3 . . . 6 3 6 3 . . . 2 . Catastrophic 4 | . . . . . . . 3 1 . . . . . Database Lockouts . | . . . . . . . . . . . . . . Manual 9 | . 7 . 1 . 1 . . . . . . . . Terminals 38 | . 10 . . . 7 . 8 2 5 3 . 3 . Fabricators 1 | . . . . . . 1 . . . . . . . Repair Stations 12 | . . . . . 7 . . 5 . . . . . Recycling Units 5 | . . . . . . 1 . 3 . . . . 1 Scanalyzers 4 | . . . . . . . . . . . . . 4 Garrison Access 6 | . . . . . . 4 . . . . 2 . . Terminal Hacks 20 | . 4 . 1 . 3 . 2 1 5 3 . 1 . Record 8 | . . . . . . . . . 5 3 . . . Robot Analysis 3 | . 2 . . . 1 . . . . . . . . Prototype ID Bank 1 | . 1 . . . . . . . . . . . . Open Door 1 | . . . . . . . 1 . . . . . . Branch Access Points 2 | . . . . . 1 . . 1 . . . . . Emergency Access Points 1 | . . . . . . . . . . . . 1 . Locate Traps 1 | . 1 . . . . . . . . . . . . Hauler Manifests 1 | . . . . . 1 . . . . . . . . Security Stations 1 | . . . . . . . 1 . . . . . . Proto ID Catalog 1 | . . . 1 . . . . . . . . . . Fabricator Hacks 1 | . . . . . . 1 . . . . . . . Network Status 1 | . . . . . . 1 . . . . . . . Repair Station Hacks 8 | . . . . . 4 . . 4 . . . . . Scan Component 4 | . . . . . 2 . . 2 . . . . . Repair 4 | . . . . . 2 . . 2 . . . . . Recycling Unit Hacks 4 | . . . . . . 1 . 2 . . . . 1 Report Inventory 3 | . . . . . . 1 . 1 . . . . 1 Retrieve Components 1 | . . . . . . . . 1 . . . . . Scanalyzer 4 | . . . . . . . . . . . . . 4 Insert Component 1 | . . . . . . . . . . . . . 1 Analyze 2 | . . . . . . . . . . . . . 2 Retrieve Study 1 | . . . . . . . . . . . . . 1 Garrison Access Hacks 3 | . . . . . . 1 . . . . 2 . . Unlock Access 2 | . . . . . . 1 . . . . 1 . . Seal Access 1 | . . . . . . . . . . . 1 . . Unauthorized Hacks 4 | . 3 . . . 1 . . . . . . . . Terminals 4 | . 3 . . . 1 . . . . . . . . Botnet 3 | . 2 . . . 1 . . . . . . . . Operators 1 | . 1 . . . . . . . . . . . . Fabricators . | . . . . . . . . . . . . . . Repair Stations . | . . . . . . . . . . . . . . Recycling Units . | . . . . . . . . . . . . . . Scanalyzers . | . . . . . . . . . . . . . . Garrison Access . | . . . . . . . . . . . . . . Data Cores Recovered . | . . . . . . . . . . . . . . Used . | . . . . . . . . . . . . . . Hacking Detections 17 | . 3 . . . 3 2 3 2 1 1 . 2 . Full Trace Events 6 | . . . . . 2 . 1 1 1 1 . . . Feedback Events . | . . . . . . . . . . . . . . Feedback Blocked . | . . . . . . . . . . . . . . Robot Schematics Acquired . | . . . . . . . . . . . . . . Robots Built . | . . . . . . . . . . . . . . Authchips . | . . . . . . . . . . . . . . Time . | . . . . . . . . . . . . . . Total Robot Build Rating . | . . . . . . . . . . . . . . Part Schematics Acquired 1 | . . . . . . . . . . . . . 1 Parts Built . | . . . . . . . . . . . . . . Authchips . | . . . . . . . . . . . . . . Time . | . . . . . . . . . . . . . . Total Part Build Rating . | . . . . . . . . . . . . . . Part Studies Acquired 1 | . . . . . . . . . . . . . 1 Parts Repaired 4 | . . . . . 2 . . 2 . . . . . Time 134 | . . . . . 52 . . 82 . . . . . Parts Recycled . | . . . . . . . . . . . . . . Recycled Matter . | . . . . . . . . . . . . . . Retrieved Matter . | . . . . . . . . . . . . . . Retrieved Components 2 | . . . . . . . . 2 . . . . . Parts Scanalyzed 1 | . . . . . . . . . . . . . 1 Part Schematics Acquired 1 | . . . . . . . . . . . . . 1 Parts Damaged . | . . . . . . . . . . . . . . Bothacking | -11 -10 -10 -10 -9 -8 -7 -7 -7 -7 -7 -6 -6 -6 ------------ Run | Yrd Mat Min Exi Min Mat Fac Gar Fac Low Low Fac Gar Fac Used RIF Installer 2 | . . . . . . . 1 . . . . 1 . Robot Detection 1 | . . . . . . . . . . . . 1 . Robots Hacked 5 | . . . . . . . . . . . 4 1 . Non-combat 4 | . . . . . . . . . . . 4 . . Combat 1 | . . . . . . . . . . . . 1 . Robot Hacks Applied 6 | . . . . . . . . . . . 5 1 . parse_system 1 | . . . . . . . . . . . 1 . . no_distress 1 | . . . . . . . . . . . 1 . . map_walls 1 | . . . . . . . . . . . 1 . . drop_inventory 1 | . . . . . . . . . . . 1 . . locate_stockpiles 1 | . . . . . . . . . . . 1 . . streamctrl_high 1 | . . . . . . . . . . . . 1 . Relay Couplers Released 21 | . . . . . . . 13 . . . . 8 . Machine Destruction 21 | . . . . . . . 13 . . . . 8 . Attached 2 | . . . . . . . . . . . 1 1 . Fabnet Peak Effective % . | . . . . . . . . . . . . . . Robots Rewired 3 | . . . . . . . 3 . . . . . . Allies Hacked . | . . . . . . . . . . . . . . Hacks Repelled . | . . . . . . . . . . . . . . Allies | -11 -10 -10 -10 -9 -8 -7 -7 -7 -7 -7 -6 -6 -6 -------- Run | Yrd Mat Min Exi Min Mat Fac Gar Fac Low Low Fac Gar Fac Total Allies 7 | . . 3 . . . . 3 . . . . 1 . Largest Group 3 | . . 3 3 3 3 . 3 . . . . 1 . Highest-Rated Group 95 | . . 40 40 40 40 . 95 . . . . 29 . Highest-Rated Ally 39 | . . 16 16 16 16 . 39 . . . . 29 . Total Orders . | . . . . . . . . . . . . . . Ally Attacks 35 | . . . . 5 5 . 21 . . . . 4 . Total Damage 443 | . . . . 50 68 . 248 . . . . 77 . Kills 7 | . . . . 3 . . 2 . . . . 2 . Allies Corrupted . | . . . . . . . . . . . . . . Allies Melted . | . . . . . . . . . . . . . . Intel | -11 -10 -10 -10 -9 -8 -7 -7 -7 -7 -7 -6 -6 -6 ------- Run | Yrd Mat Min Exi Min Mat Fac Gar Fac Low Low Fac Gar Fac Active Infowar (turns) 2086 | . 79 . . . 683 788 . 66 . . 470 . . Sensors 448 | . . . . . . 382 . 66 . . . . . Seismic 829 | . 79 . . . 683 67 . . . . . . . T.N.C. 470 | . . . . . . . . . . . 470 . . Machine Analysis 756 | . . . . . . 756 . . . . . . . Robot Analysis Total 3 | . 2 . . . 1 . . . . . . . . Derelict Logs Recovered 5 | . . 3 . 1 . . . . . 1 . . . Drone Launches . | . . . . . . . . . . . . . . Drone Recoveries . | . . . . . . . . . . . . . . Exploration | -11 -10 -10 -10 -9 -8 -7 -7 -7 -7 -7 -6 -6 -6 ------------- Run | Yrd Mat Min Exi Min Mat Fac Gar Fac Low Low Fac Gar Fac Turns Passed 9899 | 6 234 336 369 983 686 962 962 1143 990 420 1532 1032 244 Spaces Moved 4836 | 3 149 197 251 394 387 594 475 512 400 148 677 480 169 Core 45 | . . . . . . . . . . . . 45 . Treads 366 | . . . . . . 78 . 3 . 124 66 95 . Legs 373 | . . . . . . . . . . . . 204 169 Wheels 4052 | 3 149 197 251 394 387 516 475 509 400 24 611 136 . Hover . | . . . . . . . . . . . . . . Flight . | . . . . . . . . . . . . . . Fastest Speed 50 | 100 100 145 145 145 115 115 160 160 160 175 145 50 108 Average Speed 160 | 100 107 145 145 145 144 145 167 173 173 237 171 178 125 Slowest Speed 490 | 100 145 145 145 145 145 240 175 490 175 250 320 320 190 Overloaded Moves . | . . . . . . . . . . . . . . Propulsion Burnouts . | . . . . . . . . . . . . . . Robots Hopped . | . . . . . . . . . . . . . . Potential Cave-ins . | . . . . . . . . . . . . . . Cave-ins Triggered . | . . . . . . . . . . . . . . Exploration Rate (%) 31 | 2 32 45 49 69 22 13 52 18 55 14 15 49 7 Regions Visited 13 Branch Regions 5 Pre-discovered Areas 2 | . . . . . . . . . 1 1 . . . Known Exits Taken 4 | . . . . . 1 1 . 1 . . 1 . . Unknown Exits Taken 7 | 1 1 1 1 1 . . . . 1 1 . . . Scrap Searched 5 | . . . . 2 . . . . 2 1 . . . Spaces Dug 24 | . . . . . 24 . . . . . . . . Terrain Destroyed 135 | . . . . . 36 8 . . 20 31 9 31 . Melee . | . . . . . . . . . . . . . . Projectile 34 | . . . . . 13 8 . . 1 3 9 . . AOE 101 | . . . . . 23 . . . 19 28 . 31 . Terrain Rammed . | . . . . . . . . . . . . . . Walls Destroyed . | . . . . . . . . . . . . . . Machines Disabled . | . . . . . . . . . . . . . . Actions | -11 -10 -10 -10 -9 -8 -7 -7 -7 -7 -7 -6 -6 -6 --------- Run | Yrd Mat Min Exi Min Mat Fac Gar Fac Low Low Fac Gar Fac Total 6586 | 8 193 217 256 806 515 688 631 720 658 192 921 590 191 Wait 1002 | . 21 5 3 411 78 34 20 117 206 12 84 5 6 Move 4825 | 2 148 196 250 393 386 594 474 511 399 147 677 479 169 Hop . | . . . . . . . . . . . . . . Pick Up 68 | . 4 . 3 2 9 5 10 13 3 . 7 9 3 Fast Attach 30 | . 1 . . . 3 2 2 . . . 8 11 3 Attach 37 | 2 . . . . 6 4 2 5 3 1 7 6 1 Detach 19 | 2 . . . . 8 3 . . . . 3 . 3 Swap 57 | . 3 1 . . 3 11 2 7 8 3 18 . 1 Drop 52 | 2 2 . . . 8 9 8 10 2 . 1 10 . Fire 415 | . 14 15 . . 14 25 58 57 37 29 111 50 5 Melee 1 | . . . . . . 1 . . . . . . . Ram 1 | . . . . . . . . . . . 1 . . Kick . | . . . . . . . . . . . . . . Crush . | . . . . . . . . . . . . . . Escape Stasis 40 | . . . . . . . 16 . . . 4 20 . Rewire 39 | . . . . . . . 39 . . . . . . Trap . | . . . . . . . . . . . . . . Miscellaneous . | . . . . . . . . . . . . . . Route ------- -11/Scrapyard -10/Materials -10/Mines (discovered 3 exits: [*Mat x2] / *Exi) -10/Exiles -9/Mines -8/Materials (discovered 2 exits: *Fac x2) -7/Factory -7/Garrison (discovered 2 exits: *Fac x2) -7/Factory (discovered 2 exits: *Low x2) -7/Lower Caves -7/Lower Caves -6/Factory (discovered 2 exits: *Fac / Gar) -6/Garrison (discovered 2 exits: *Fac x2) -6/Factory History --------- Turn | Location | Event 5 | -11/Scrapyard | Discovered new exit (range 1) 7 | -11/Scrapyard | Entered Materials 181 | -10/Materials | Discovered new exit (range 11) 241 | -10/Materials | Entered Mines 270 | -10/Mines | Discovered new exit (range 10) 300 | -10/Mines | Build established: Mutant 369 | -10/Mines | Learned 2 Materials zone layouts 405 | -10/Mines | Learned Materials emergency access door positions 462 | -10/Mines | Assisted by bots powering up and referring to "LRC-V3" 482 | -10/Mines | Learned 2 Materials zone layouts 543 | -10/Mines | Discovered new exit (range 6) 568 | -10/Mines | Deemed a non-threat by the Exiles lab entrance 568 | -10/Mines | Discovered new exit (range 5) 577 | -10/Mines | Entered Exiles 577 | -10/Exiles | Accompanied by 3 allies 615 | -10/Exiles | Met 8R-AWN 638 | -10/Exiles | Met EX-HEX 684 | -10/Exiles | Met EX-BIN 702 | -10/Exiles | Aligned with FarCom system 703 | -10/Exiles | Given EX-Vault access code 738 | -10/Exiles | Opened EX-Vault 758 | -10/Exiles | Found Field Lobotomy Kit 764 | -10/Exiles | Found XL Autogun Array 795 | -10/Exiles | Warned to stay clear of 0b10 Research branches 834 | -10/Exiles | Met EX-DEC 923 | -10/Exiles | Discovered new exit (range 15) 946 | -10/Exiles | Stole two prototypes: XL Autogun Array, Field Lobotomy Kit 946 | -10/Exiles | Entered Mines 946 | -9/Mines | Accompanied by 3 allies 1058 | -9/Mines | Found a Scrap Suit stashed away for nefarious purposes 1881 | -9/Mines | Learned Materials trap positions 1901 | -9/Mines | Discovered new exit (range 10) 1929 | -9/Mines | Entered Materials 1929 | -8/Materials | Accompanied by 3 allies 1929 | -8/Materials | Evolved 4 slots: Propulsion x1, Utility x1, Weapon x2 1930 | -8/Materials | Identified exit to Factory 1931 | -8/Materials | Loaded intel: 17 trap records 2190 | -8/Materials | Repaired Com. Wheel 2217 | -8/Materials | Repaired Lgt. Armor Plating 2238 | -8/Materials | Build established: Skirmisher 2305 | -8/Materials | Lost 3 allies 2615 | -8/Materials | Entered Factory 2615 | -7/Factory | Evolved 2 slots: Utility x2 2617 | -7/Factory | FarCom data flow suspended 2862 | -7/Factory | Build established: Mutant 3221 | -7/Factory | Garrison activated, responded to threat 3337 | -7/Factory | Build established: Tank 3577 | -7/Factory | Identified exit to Garrison 3577 | -7/Factory | Entered Garrison 3614 | -7/Garrison | Garrison Relay disabled 3633 | -7/Garrison | Triggered checkpoint 3837 | -7/Garrison | Triggered checkpoint 3869 | -7/Garrison | Triggered checkpoint 3881 | -7/Garrison | Triggered checkpoint 3919 | -7/Garrison | Lost 3 allies 4015 | -7/Garrison | Triggered checkpoint 4044 | -7/Garrison | Garrison Relay disabled 4164 | -7/Garrison | Discovered new exit (range 8) 4349 | -7/Garrison | Learned Factory security intel 4357 | -7/Garrison | Triggered checkpoint 4373 | -7/Garrison | Build established: Mutant 4379 | -7/Garrison | Garrison Relay disabled 4401 | -7/Garrison | Installed Relay Interface Framework 4446 | -7/Garrison | Discovered new exit (range 12) 4537 | -7/Garrison | Identified exit to Factory 4539 | -7/Garrison | Entered Factory 4751 | -7/Factory | Found Prototype Launcher 4992 | -7/Factory | Build established: Tank 5335 | -7/Factory | Repaired Hrd. Heavy Armor Plating 5374 | -7/Factory | Repaired Arm. Treads 5484 | -7/Factory | Identified exit to Lower Caves 5682 | -7/Factory | Entered Lower Caves 6113 | -7/Lower Caves | Attracted the attention of an 0b10 base 6138 | -7/Lower Caves | Destroyed 9 combat bots 6351 | -7/Lower Caves | Learned location of Extension (-5) 6351 | -7/Lower Caves | Learned Research security intel 6628 | -7/Lower Caves | Encountered a Warlord checkpoint 6657 | -7/Lower Caves | Discovered new exit (range 6) 6672 | -7/Lower Caves | Entered another Lower Caves area 6747 | -7/Lower Caves | Build established: Gunner 6764 | -7/Lower Caves | Destroyed 11 combat bots 6770 | -7/Lower Caves | Lost 3 parts (2n1u) 6875 | -7/Lower Caves | Learned Armory terminal intel 6875 | -7/Lower Caves | Learned Research security intel 6927 | -7/Lower Caves | Attracted the attention of an 0b10 base 7079 | -7/Lower Caves | Discovered new exit (range 5) 7092 | -7/Lower Caves | Entered Factory 7092 | -6/Factory | Evolved 2 slots: Propulsion x1, Utility x1 7213 | -6/Factory | Discovered new exit (range 8) 7282 | -6/Factory | Identified exit to Factory 7539 | -6/Factory | Identified Rocket Array 7563 | -6/Factory | Garrison activated, responded to threat 7747 | -6/Factory | Build established: Tank 8067 | -6/Factory | Build established: Scavenger-Tank 8624 | -6/Factory | Identified exit to Garrison 8624 | -6/Factory | Entered Garrison 8676 | -6/Garrison | Garrison Relay disabled 8818 | -6/Garrison | Triggered checkpoint 8818 | -6/Garrison | Triggered checkpoint 8938 | -6/Garrison | Lost 4 parts (2n2u) 9080 | -6/Garrison | Lost 3 parts (1p2n) 9108 | -6/Garrison | Discovered new exit (range 7) 9168 | -6/Garrison | Build established: Bothacker-Gunner 9198 | -6/Garrison | Triggered checkpoint 9251 | -6/Garrison | Lost 5 parts (1n4w) 9405 | -6/Garrison | System corruption reached 10% 9520 | -6/Garrison | Build established: Bothacker-Mutant 9544 | -6/Garrison | Discovered new exit (range 11) 9561 | -6/Garrison | Identified exit to Factory 9586 | -6/Garrison | Expanded RIF knowledge: Robot Detection 9656 | -6/Garrison | Entered Factory 9900 | -6/Factory | Self-destructed Last Messages --------------- Identified Carbon-fiber Leg... Downloading performance data... Effective improvements: -15 time/move 09806_ Acquired Adv. Terrain Scan Processor. 09837_ Connecting with Recycling Unit... >>Recycling(Report) Matter reserves: 0 Inventory: Lrn. Proton Cannon (57%) Imp. Coolant Injector (31%) 09842_ Acquired Imp. Reaction Control System. 09847_ System corrupted: Energy discharge (-33). 09887_ A-15 Conveyor calls for reinforcements. 09887_ ALERT: Hostile activity reported, dispatching reinforcements to area. 09895_ A-15 Conveyor destroyed. 09899_ ALERT: Potential suspicious activity detected, Programmers report to Factory Zone 8G. Map ----- +----------------------------------------------------+ | ????????########## + #???????????????????? | | ???????? # # ! #???????????????????? | | ??????????"" """ # # ] !#???????????????????? | | ??????????"" """ + ########???????????????????? | | ??????????"" """ #### #??????????????????????????? | | ???????? #??# ########???????????????????? | | ???????? #??# # [#???????????????????? | | ???????# #??# # #???????????????????? | | ???????# ! #??# # #???????????????????? | | ???????###########??# + " " #???????????????????? | | ???????????? ???????# # "Y" #???????????????????? | | ?????????? ??????# # """ #???????????????????? | | ?????????? ??????# ########???????????????????? | | ????????? ?????# #??????????????????????????? | | ????????? ????# #??????????????????????????? | | ???????? ???# #??????????????????????????? | | ???????? ???# #??????????????????????????? | | ???????# ??# #??????????????????????????? | | ???????# ?# #??????????????????????????? | | ???????# # #??###?????????????????????? | | ???????# # ### ##???????????????????? | | ???????# + +?????????????????? | | ?????????????########+### ##???????????g???????? | | ???????????????????# ## #????????????g????????? | | ???????????????????# ## ###### g ????????? | | ???????????????????# /@ ????????? | | ???????????????????#![ ##+###### ""???????????? | | ???????????????????#![ # #?????????????????? | | ???????????????????#[ # "" #?????????????????? | | ???????????????????# #! =F" #?????????????????? | | ???????????????????# # ]]]" #?????????????????? | | ???????????????????# !#=]%"" #?????????????????? | | ???????????????????###### ]]] #?????????????????? | | ????????????????????????# """" #?????????????????? | | ????????????????????????# """" #?????????????????? | | ????????????????????????# """" #?????????????????? | | ????????????????????????# """" #?????????????????? | | ????????????????????????# ???????????????????????? | | ????????????????????????# ???????????????????????? | | ????????????????????????# ???????????????????????? | | ????????????????????????##???????????????????????? | | ?????????????????????????????????????????????????? | | ?????????????????????????????????????????????????? | | ?????????????????????????????????????????????????? | | ?????????????????????????????????????????????????? | | ?????????????????????????????????????????????????? | | ?????????????????????????????????????????????????? | | ?????????????????????????????????????????????????? | | ?????????????????????????????????????????????????? | | ?????????????????????????????????????????????????? | +----------------------------------------------------+ Best States ------------- Heat Dissipation 56 Energy Generation 18 Energy Capacity 290 Matter Stores 300 Matter Capacity 300 Sight Range 16 Robot Scan Range 15 Terrain Scan Density 10 Armor Coverage 900 Weapon Cycling 15 Evasion (%) 65 Target Analysis 5 Recoil Reduction 3 Kinecelleration 30 Defensive Hacking 10 Relay Coupler Types 1 Relay Coupler Value 28 Item Schematics ----------------- Rocket Array | -6/Factory | Scanalyzed Robot Schematics ------------------ None Fabricated ------------ Nothing Repaired ---------- Com. Wheel | 26% | -8/Materials Lgt. Armor Plating | 56% | -8/Materials Hrd. Heavy Armor Plating | 18% | -7/Factory Arm. Treads | 37% | -7/Factory Studied --------- Carbon-fiber Leg | -6/Factory | Hacked Alien Tech Used ----------------- None Achievements -------------- None Challenges ------------ None Game ------ Seed BlanketWarlordPick Manual? 0 Play Time 01:30:06 Cumulative 118.9 hours Start 2025.12.04 @ 16:13:39 End 2025.12.05 @ 02:58:37 Sessions 3 Manual Loads 0 Difficulty Rogue Special Mode None Game No. 125 Rogue 95 Adventurer 30 Explorer 0 Win Type - Total 1 Types 1/0/0/0/0/0/0/0/0/0 Lore% 57 Gallery% 47 Achievement% 35 Wizard Run 0 Options --------- Layout 2 ASCII 0 Keyboard 1 Movement Arrows Keybinds 0 Fullscreen 1 Font 24/Terminus Map View 50x44 Zoom Use 0% Tactical HUD 1 Map Filters NONE Filters NONE Steam 1 RUN: d9186a54-6d97-4305-ba88-af8e9da77c68